fUST/lending_fUST_20250824
["ID","MTS","AMOUNT","RATE_DAILY","PERIOD"]
[381075296,1756001778626,350.05289957,0.000199,2]
[381075297,1756001778775,350.05289933,0.00023353,2]
[381075298,1756001779078,350.05289933,0.00021627,2]
[381075299,1756001837635,161.602158,0.00013699,2]
[381075300,1756001947269,315.00232864,0.000199,2]
[381075301,1756001948029,315.00232851,0.00021627,2]
[381075302,1756001948281,315.00232851,0.00023353,2]
[381075303,1756002114532,298.0366536,0.000199,2]
[381075304,1756002114596,298.03665355,0.00023353,2]
[381075305,1756002115042,298.03665355,0.00021627,2]
[381075306,1756002290587,268.23298819,0.00021627,2]
[381075307,1756002290777,268.23298819,0.00023353,2]
[381075308,1756002290952,268.23298834,0.000199,2]
[381075311,1756002460357,267.33427364,0.000199,2]
[381075312,1756002460594,267.33427342,0.00023353,2]
[381075313,1756002461182,267.33427342,0.00021627,2]
[381075315,1756002472833,899.04261687,0.00018,2]
[381075316,1756002472855,30000.0,0.00018,2]
[381075317,1756002472878,20269.95229628,0.00018,2]
[381075322,1756002489635,5000.0,0.0002501,2]
[381075323,1756002492799,5842.73879552,0.00029498,120]
[381075325,1756002504901,4730.04770372,0.0002501,2]
[381075326,1756002504925,269.95229628,0.0002501,2]
[381075327,1756002516423,5016.98543816,0.00017,2]
[381075329,1756002518651,8984.5628209,0.00025,2]
[381075330,1756002519270,15728.49944466,0.00025,2]
[381075331,1756002519292,10751.53843162,0.00025,2]
[381075332,1756002519497,10364.0,0.00025,2]
[381075333,1756002521488,5000.0,0.0002501,2]
[381075334,1756002525646,3884.46156838,0.00025,2]
[381075335,1756002525676,30000.0,0.00025,2]
[381075336,1756002525698,30000.0,0.00025,2]
[381075337,1756002525719,11462.22651348,0.00025,2]
[381075338,1756002527108,15461.76623209,0.0002465,2]
[381075339,1756002536693,3076.00725443,0.0002501,2]
[381075340,1756002536715,1923.99274557,0.0002501,2]
[381075341,1756002543692,201.41,0.00023193,2]
[381075342,1756002550124,-267.33427342,0.0002508,2]
[381075343,1756002550144,-1811.75796311,0.0002508,2]
[381075344,1756002552635,5000.0,0.0002501,2]
[381075345,1756002567999,155.88846743,0.0002508,2]
[381075346,1756002568047,495.68028135,0.0002501,2]
[381075347,1756002568083,4504.31971865,0.0002501,2]
[381075348,1756002584118,5000.0,0.0002501,2]
[381075351,1756002592318,886.36354137,0.0002501,2]
[381075355,1756002600604,5000.0,0.0002501,2]
[381075356,1756002608627,4131.56011268,0.0002501,2]
[381075357,1756002616787,5000.0,0.0002501,2]
[381075358,1756002628507,805.33448096,0.000199,2]
[381075359,1756002629121,805.33448067,0.00021627,2]
[381075360,1756002629291,805.33448067,0.00023353,2]
[381075381,1756002633290,936.35043943,0.0002501,2]
[381075382,1756002633316,4063.64956057,0.0002501,2]
[381075440,1756002638294,-805.33448067,0.0002508,2]
[381075441,1756002638303,-182.590869,0.00025778,2]
[381075442,1756002638313,-159.70847506,0.00026044,2]
[381075443,1756002638323,-187.40354108,0.00026706,2]
[381075444,1756002638332,-805.33448067,0.00026806,6]
[381075445,1756002638341,-1200.0,0.00026849,2]
[381075446,1756002638351,-4522.45429546,0.0002685,2]
[381075447,1756002638362,-4800.0,0.0002685,2]
[381075448,1756002638374,-695.54570454,0.0002685,2]
[381075449,1756002638383,-339.24222421,0.0002799,2]
[381075450,1756002638392,-456.86858416,0.00028045,2]
[381075451,1756002638402,-155.4891924,0.00028047,2]
[381075453,1756002638411,-456.86858414,0.00028059,2]
[381075454,1756002638421,-300.0,0.00028068,2]
[381075455,1756002638434,-300.0,0.00028068,2]
[381075456,1756002638444,-300.0,0.00028068,2]
[381075457,1756002638454,-300.0,0.00028068,2]
[381075458,1756002638464,-282.0,0.00028069,2]
[381075459,1756002638474,-23088.637564,0.00028069,2]
[381075460,1756002638483,-690.08977892,0.00028073,2]
[381075461,1756002638493,-1358.13446075,0.00028073,2]
[381075462,1756002638502,-456.86858414,0.00028073,2]
[381075463,1756002638511,-8463.02045216,0.00028137,2]
[381075464,1756002638522,-151.70994571,0.0002814,2]
[381075465,1756002638531,-604.68997949,0.0002814,2]
[381075466,1756002638540,-500.0,0.00028145,2]
[381075467,1756002638550,-384.51766911,0.00028145,2]
[381075468,1756002638559,-500.0,0.00028145,2]
[381075469,1756002638569,-184.78895205,0.00028145,2]
[381075470,1756002638578,-467.66532672,0.00028145,2]
[381075471,1756002638588,-500.0,0.00028145,2]
[381075472,1756002638604,-280.34295165,0.00028146,18]
[381075473,1756002638613,-255.22,0.00028146,3]
[381075474,1756002638623,-765.68,0.00028146,3]
[381075476,1756002638632,-67704.1636173,0.00028146,2]
[381075478,1756002638641,-154.040995,0.00028147,7]
[381075479,1756002638651,-151.0,0.00028147,7]
[381075480,1756002638660,-152.467241,0.00028147,7]
[381075481,1756002638670,-164.48523162,0.00028155,2]
[381075482,1756002638683,-151.0,0.00028156,7]
[381075484,1756002638695,-151.0,0.00028156,7]
[381075486,1756002638705,-151.720491,0.00028156,7]
[381075488,1756002638714,-155.06486,0.00028156,7]
[381075490,1756002638724,-151.0,0.00028156,7]
[381075492,1756002638733,-154.378289,0.00028156,7]
[381075494,1756002638743,-151.0,0.00028156,7]
[381075496,1756002638753,-152.070455,0.00028156,7]
[381075497,1756002638762,-151.873407,0.00028156,7]
[381075498,1756002638771,-151.0,0.00028156,7]
[381075499,1756002638781,-151.0,0.00028156,7]
[381075500,1756002638790,-151.0,0.00028156,7]
[381075501,1756002638800,-151.0,0.00028156,7]
[381075502,1756002638809,-153.07797,0.00028156,7]
[381075503,1756002638818,-151.0,0.00028156,7]
[381075504,1756002638827,-151.0,0.00028156,7]
[381075505,1756002638837,-151.0,0.00028156,7]
[381075506,1756002638846,-151.965115,0.00028156,7]
[381075507,1756002638855,-151.482236,0.00028156,7]
[381075508,1756002638865,-151.0,0.00028156,7]
[381075509,1756002638874,-151.0,0.00028156,7]
[381075510,1756002638884,-151.0,0.00028156,7]
[381075511,1756002638894,-151.0,0.00028156,7]
[381075512,1756002638903,-151.491515,0.00028156,7]
[381075513,1756002638912,-151.0,0.00028156,7]
[381075514,1756002638922,-200.155719,0.00028156,7]
[381075515,1756002638934,-151.0,0.00028156,7]
[381075516,1756002638943,-151.0,0.00028156,7]
[381075517,1756002638953,-151.0,0.00028156,7]
[381075518,1756002638963,-151.0,0.00028156,7]
[381075519,1756002638972,-267.16112,0.00028156,7]
[381075520,1756002638982,-151.0,0.00028156,7]
[381075521,1756002638991,-151.0,0.00028156,7]
[381075522,1756002639003,-151.0,0.00028156,7]
[381075523,1756002639012,-151.0,0.00028156,7]
[381075524,1756002639021,-153.235119,0.00028156,7]
[381075525,1756002639030,-151.0,0.00028156,7]
[381075526,1756002639040,-151.0,0.00028156,7]
[381075527,1756002639049,-151.0,0.00028156,7]
[381075528,1756002639058,-151.0,0.00028156,7]
[381075529,1756002639068,-151.750576,0.00028156,7]
[381075530,1756002639077,-449.187489,0.00028156,7]
[381075531,1756002639087,-449.187489,0.00028156,7]
[381075532,1756002639098,-449.187489,0.00028156,7]
[381075533,1756002639107,-449.187489,0.00028156,7]
[381075534,1756002639116,-151.0,0.00028156,7]
[381075535,1756002639125,-151.0,0.00028156,2]
[381075536,1756002639135,-240.14917037,0.00028156,7]
[381075537,1756002639144,-189.84344737,0.00028156,2]
[381075538,1756002639154,-26.54975817,0.00028156,7]
[381075539,1756002639166,-473.45024183,0.00028156,7]
[381075540,1756002639176,-500.0,0.00028156,7]
[381075541,1756002639185,-500.0,0.00028156,7]
[381075542,1756002639195,-151.0,0.00028156,7]
[381075543,1756002639205,-151.0,0.00028156,7]
[381075544,1756002639215,-500.0,0.00028156,7]
[381075545,1756002639224,-151.844864,0.00028156,7]
[381075546,1756002639233,-376.22310801,0.00028156,7]
[381075547,1756002639243,-153.26781298,0.00028156,7]
[381075548,1756002639252,-151.0,0.00028156,7]
[381075549,1756002639262,-217.07852671,0.00028156,7]
[381075550,1756002639271,-151.0,0.00028156,7]
[381075551,1756002639281,-151.0,0.00028156,7]
[381075552,1756002639290,-199.17856352,0.00028156,7]
[381075553,1756002639299,-242.03064917,0.00028156,7]
[381075554,1756002639309,-151.0,0.00028156,7]
[381075555,1756002639318,-151.0,0.00028156,7]
[381075556,1756002639327,-151.0,0.00028156,7]
[381075557,1756002639337,-151.0,0.00028156,7]
[381075558,1756002639346,-1897.45153433,0.00028156,2]
[381075559,1756002639355,-28363.50820232,0.00028156,2]
[381075560,1756002639366,-35089.19865657,0.00028156,2]
[381075561,1756002639385,-388.93296546,0.00028156,2]
[381075562,1756002639396,-374.4860386,0.00028156,2]
[381075563,1756002639407,-3430.85880594,0.00028156,2]
[381075564,1756002639418,-3488.32236836,0.00028156,2]
[381075565,1756002639430,-12037.66927369,0.00028156,2]
[381075566,1756002639441,-885.96677516,0.00028156,2]
[381075567,1756002639452,-3157.4254304,0.00028156,2]
[381075612,1756002640306,-652.65885198,0.00028156,2]
[381075614,1756002640319,-350.0842972,0.00028156,2]
[381075616,1756002640330,-359.29937596,0.00028156,2]
[381075618,1756002640342,-1590.49922142,0.00028156,2]
[381075620,1756002640353,-6238.2690005,0.00028156,2]
[381075665,1756002643252,-339.72560719,0.00028156,2]
[381075680,1756002646326,-527.3554621,0.00028156,2]
[381075681,1756002647415,-11049.42063348,0.00028156,2]
[381075682,1756002647426,-970.14,0.00028156,2]
[381075683,1756002647439,-5254.59318187,0.00028156,2]
[381075684,1756002647457,-1437.1938843,0.00028156,2]
[381075685,1756002649225,5000.0,0.0002501,2]
[381075686,1756002664474,5000.0,0.0002501,2]
[381075689,1756002681078,5000.0,0.0002501,2]
[381075690,1756002696490,5000.0,0.0002501,2]
[381075691,1756002712455,5000.0,0.0002501,2]
[381075692,1756002727944,936.35043943,0.0002501,2]
[381075693,1756002727968,4063.64956057,0.0002501,2]
[381075694,1756002727994,171.0,0.00025,7]
[381075695,1756002731660,194.51,0.0002501,7]
[381075696,1756002739694,160.484735,0.00013699,2]
[381075697,1756002744207,5000.0,0.0002501,2]
[381075698,1756002761401,5000.0,0.0002501,2]
[381075699,1756002769917,714.55827471,0.00023005,2]
[381075700,1756002777216,5000.0,0.0002501,2]
[381075701,1756002792645,5000.0,0.0002501,2]
[381075702,1756002795834,1187.05514032,0.000199,2]
[381075703,1756002795976,1187.05514004,0.00023353,2]
[381075704,1756002796564,1187.05514004,0.00021627,2]
[381075705,1756002809058,1134.63200932,0.0002501,2]
[381075706,1756002809082,3865.36799068,0.0002501,2]
[381075707,1756002824577,5000.0,0.0002501,2]
[381075709,1756002839999,5000.0,0.0002501,2]
[381075711,1756002856484,5000.0,0.0002501,2]
[381075712,1756002872581,5000.0,0.0002501,2]
[381075713,1756002889198,5000.0,0.0002501,2]
[381075714,1756002905199,1134.63200932,0.0002501,2]
[381075715,1756002905227,3865.36799068,0.0002501,2]
[381075716,1756002921317,5000.0,0.0002501,2]
[381075717,1756002929381,152.748763,0.00024327,2]
[381075718,1756002937283,5000.0,0.0002501,2]
[381075719,1756002954022,1602.11278143,0.0002501,2]
[381075720,1756002961819,1157.211421,0.000199,2]
[381075721,1756002962736,1157.21142085,0.00021627,2]
[381075723,1756002969915,5000.0,0.0002501,2]
[381075724,1756002985154,5000.0,0.0002501,2]
[381075725,1756003000709,2065.34762304,0.0002501,2]
[381075726,1756003001120,400017.0,0.000273,120]
[381075729,1756003128065,1080.06399289,0.000199,2]
[381075730,1756003128172,1080.06399279,0.00021627,2]
[381075731,1756003129578,-167.89282147,0.00023353,2]
[381075732,1756003132496,-341.36799516,0.00023353,2]
[381075733,1756003136103,-272.36045322,0.00023353,2]
[381075734,1756003140007,-160.0,0.00023353,2]
[381075735,1756003142899,-138.44272294,0.00023353,2]
[381075737,1756003192018,5000.0,0.00025,3]
[381075739,1756003208128,3796.15575652,0.00025,3]
[381075740,1756003294059,972.05759354,0.000199,2]
[381075741,1756003295033,-225.26603376,0.00023353,2]
[381075742,1756003299682,-152.95568284,0.00023353,2]
[381075743,1756003301944,-217.40260384,0.00023353,2]
[381075744,1756003303553,-313.2966104,0.00023353,2]
[381075745,1756003308913,-63.13666267,0.00023353,2]
[381075746,1756003312757,683.65489708,0.00025,3]
[381075750,1756003459360,907.25375402,0.000199,2]
[381075751,1756003459404,907.25375394,0.00021627,2]
[381075752,1756003460115,-221.72670706,0.00023353,2]
[381075753,1756003463455,-187.41557551,0.00023353,2]
[381075754,1756003464733,-183.99163667,0.00023353,2]
[381075755,1756003467278,-280.87622355,0.00023353,2]
[381075756,1756003468933,-33.24361115,0.00023353,2]
[381075757,1756003473738,937.14680546,0.00025,3]
[381075760,1756003631084,-182.61459002,0.00025,2]
[381075761,1756003631103,-740.23346126,0.000251,2]
[381075762,1756003642373,816.52837872,0.000199,2]
[381075763,1756003642825,816.52837854,0.00021627,2]
[381075764,1756003643363,-275.5902435,0.00023353,2]
[381075765,1756003646034,-300.0,0.00023353,2]
[381075766,1756003648228,-240.93813504,0.00023353,2]
[381075767,1756003650497,5000.0,0.00025,3]
[381075768,1756003665967,348.31953824,0.00025,3]
[381075771,1756003761084,-128.18186416,0.000251,2]
[381075772,1756003762745,160.484735,0.00013699,2]
[381075773,1756003813710,767.96302287,0.000199,2]
[381075774,1756003813955,767.96302283,0.00021627,2]
[381075775,1756003814165,767.96302283,0.00023353,2]
[381075776,1756003814677,767.96302283,0.0002508,2]
[381075825,1756003832551,-192.195857,0.00025778,2]
[381075828,1756003832562,-180.691535,0.00026465,2]
[381075830,1756003832572,-182.61459,0.00026474,2]
[381075833,1756003832582,-58.11733267,0.000268,10]
[381075837,1756003832595,-941.88266733,0.000268,10]
[381075839,1756003832605,-767.96302283,0.00026806,6]
[381075841,1756003832616,-214.65112646,0.00027378,2]
[381075844,1756003832631,-298.38969098,0.00027378,2]
[381075846,1756003832643,-80.08522826,0.00027378,2]
[381075848,1756003832653,-1200.0,0.00027868,2]
[381075850,1756003832663,-300.0,0.00027869,2]
[381075852,1756003832673,-300.0,0.00027869,2]
[381075854,1756003832683,-300.0,0.00027869,2]
[381075856,1756003832692,-300.0,0.00027869,2]
[381075858,1756003832702,-300.0,0.00027869,2]
[381075860,1756003832711,-7431.07517311,0.0002787,2]
[381075862,1756003832721,-7708.29914565,0.00027873,2]
[381075864,1756003832731,-604.27646127,0.0002788,2]
[381075866,1756003832741,-182.61459,0.00027947,2]
[381075868,1756003832751,-552.07182312,0.00027971,2]
[381075870,1756003832760,-1000.0,0.0002798,2]
[381075872,1756003832771,-1473.40650117,0.00028,2]
[381075874,1756003832781,-510.44,0.00028046,3]
[381075876,1756003832791,-24458.06280049,0.00028046,2]
[381075902,1756003838464,-1572.48334167,0.00027955,2]
[381075903,1756003838480,-562.85387937,0.00027955,2]
[381075904,1756003838489,-478.71612313,0.00028046,2]
[381075909,1756003838570,-425.055,0.00028046,2]
[381075911,1756003838582,-17421.81932448,0.00028046,2]
[381075912,1756003838591,-190.21566229,0.00028054,2]
[381075914,1756003838600,-600.4494604,0.00028054,2]
[381075915,1756003838609,-263.48,0.00028054,2]
[381075917,1756003838620,-190.86868499,0.00028054,2]
[381075919,1756003838629,-255.25110983,0.00028054,2]
[381075921,1756003838639,-258.30922849,0.00028055,2]
[381075922,1756003838648,-151.0,0.00028056,7]
[381075923,1756003838657,-151.0,0.00028056,7]
[381075924,1756003838667,-153.182624,0.00028056,7]
[381075925,1756003838676,-151.208308,0.00028056,7]
[381075926,1756003838686,-151.0,0.00028056,7]
[381075927,1756003838696,-151.0,0.00028056,7]
[381075928,1756003838706,-151.0,0.00028056,7]
[381075929,1756003838716,-151.0,0.00028056,7]
[381075930,1756003838727,-152.436007,0.00028056,7]
[381075931,1756003838736,-151.0,0.00028056,7]
[381075932,1756003838745,-151.0,0.00028056,7]
[381075933,1756003838755,-151.0,0.00028056,7]
[381075934,1756003838764,-151.0,0.00028056,7]
[381075935,1756003838774,-151.0,0.00028056,7]
[381075936,1756003838784,-151.0,0.00028056,7]
[381075937,1756003838794,-153.146968,0.00028056,7]
[381075938,1756003838803,-151.0,0.00028056,7]
[381075939,1756003838813,-151.497997,0.00028056,7]
[381075940,1756003838823,-151.0,0.00028056,7]
[381075941,1756003838832,-151.0,0.00028056,7]
[381075942,1756003838843,-176.209492,0.00028056,7]
[381075943,1756003838852,-359.349991,0.00028056,7]
[381075944,1756003838862,-359.349991,0.00028056,7]
[381075945,1756003838871,-359.349991,0.00028056,7]
[381075946,1756003838881,-359.349991,0.00028056,7]
[381075947,1756003838890,-151.0,0.00028056,7]
[381075948,1756003838900,-151.0,0.00028056,7]
[381075949,1756003838909,-151.0,0.00028056,7]
[381075950,1756003838919,-370000.0,0.00028056,2]
[381075951,1756003838928,-160.0,0.00028071,2]
[381075952,1756003838938,-215.99145658,0.00028071,2]
[381075953,1756003838947,-504.24055655,0.00028073,5]
[381075954,1756003838957,-501.8274304,0.00028073,5]
[381075955,1756003838966,-500.0,0.00028073,5]
[381075956,1756003838977,-260.96705563,0.00028073,5]
[381075957,1756003838986,-152.20744429,0.00028073,5]
[381075958,1756003838996,-505.37501158,0.00028073,5]
[381075959,1756003839005,-500.0,0.00028073,5]
[381075960,1756003839014,-563.8230852,0.00028073,5]
[381075961,1756003839024,-500.0,0.00028073,5]
[381075962,1756003839033,-502.00288963,0.00028073,5]
[381075963,1756003839043,-263.22701297,0.00028073,5]
[381075964,1756003839051,-217.07852671,0.00028087,2]
[381075965,1756003839061,-282.01,0.000281,20]
[381075966,1756003839070,-151.0,0.00028156,7]
[381075967,1756003839079,-152.010756,0.00028156,7]
[381075968,1756003839088,-151.0,0.00028156,7]
[381075969,1756003839097,-151.0,0.00028156,7]
[381075970,1756003839106,-151.0,0.00028156,7]
[381075971,1756003839116,-152.24497276,0.00028156,7]
[381075972,1756003839341,-153.14486376,0.00028156,7]
[381075973,1756003839356,-152.51736608,0.00028156,7]
[381075974,1756003839366,-153.5806524,0.00028156,7]
[381075975,1756003839375,-153.47980678,0.00028156,7]
[381075976,1756003839384,-153.06781976,0.00028156,7]
[381075977,1756003839394,-152.10221791,0.00028156,7]
[381075978,1756003839403,-151.67772087,0.00028156,7]
[381075979,1756003839412,-152.0451423,0.00028156,7]
[381075980,1756003839422,-151.24562377,0.00028156,7]
[381075981,1756003839431,-202.43755367,0.00028156,7]
[381075982,1756003839440,-151.0,0.00028156,7]
[381075983,1756003839449,-151.0,0.00028156,7]
[381075984,1756003839458,-151.0,0.00028156,7]
[381075985,1756003839467,-151.46642968,0.00028156,7]
[381075986,1756003839476,-152.31244827,0.00028156,7]
[381075987,1756003839486,-151.0,0.00028156,2]
[381075988,1756003839495,-151.0,0.00028156,2]
[381075989,1756003839503,-151.57066328,0.00028156,2]
[381075990,1756003839513,-1006.99,0.000282,20]
[381075991,1756003839522,-151.0,0.00028209,7]
[381075992,1756003839531,-151.0,0.00028209,7]
[381075993,1756003839541,-221.29636903,0.00028209,7]
[381075994,1756003839550,-151.0,0.00028209,7]
[381075995,1756003839559,-152.78967508,0.00028209,7]
[381075996,1756003839569,-151.0,0.00028209,7]
[381075997,1756003839578,-199.96548473,0.00028209,7]
[381075998,1756003839587,-151.0,0.00028209,7]
[381075999,1756003839596,-500.0,0.00028209,7]
[381076000,1756003839605,-151.0,0.00028209,7]
[381076001,1756003839614,-153.89509612,0.00028209,7]
[381076002,1756003839623,-152.10454192,0.00028209,7]
[381076003,1756003839633,-500.0,0.00028209,7]
[381076004,1756003839642,-500.0,0.00028209,7]
[381076005,1756003839652,-151.0,0.00028209,7]
[381076006,1756003839661,-529.17068775,0.00028209,7]
[381076007,1756003839670,-844.67759735,0.00028209,7]
[381076008,1756003839680,-376.22310801,0.00028209,7]
[381076009,1756003839689,-217.07852671,0.00028209,7]
[381076010,1756003839699,-299.513336,0.00028219,7]
[381076011,1756003839709,-152.061886,0.00028219,7]
[381076012,1756003839718,-151.0,0.00028219,7]
[381076013,1756003839729,-1499.99999901,0.0002825,2]
[381076014,1756003839739,-155.48871784,0.00028255,120]
[381076015,1756003839749,-552.07182311,0.00028322,2]
[381076016,1756003839759,-151.0,0.0002835,7]
[381076017,1756003839768,-231.676301,0.0002835,7]
[381076018,1756003839778,-151.0,0.0002835,7]
[381076019,1756003839788,-152.028638,0.0002835,7]
[381076020,1756003839797,-151.959795,0.0002835,7]
[381076021,1756003839807,-151.0,0.00028356,7]
[381076022,1756003839817,-151.0,0.00028356,7]
[381076023,1756003839826,-151.0,0.00028356,7]
[381076024,1756003839836,-151.0,0.00028356,7]
[381076025,1756003839845,-151.0,0.00028356,7]
[381076026,1756003839854,-153.351818,0.00028356,7]
[381076027,1756003839864,-151.0,0.00028356,7]
[381076028,1756003839874,-151.0,0.00028356,7]
[381076029,1756003839884,-151.0,0.00028356,7]
[381076030,1756003839893,-151.0,0.00028356,7]
[381076031,1756003839902,-6111.95046402,0.0002837,2]
[381076032,1756003839912,-151.0,0.0002837,7]
[381076033,1756003839922,-151.571379,0.0002838,7]
[381076034,1756003839931,-151.0,0.0002838,7]
[381076035,1756003839941,-153.948651,0.0002838,7]
[381076036,1756003839950,-152.526023,0.0002838,7]
[381076037,1756003839960,-151.0,0.0002838,7]
[381076038,1756003839969,-151.0,0.0002838,7]
[381076039,1756003839979,-151.0,0.0002838,7]
[381076040,1756003839989,-151.0,0.0002838,7]
[381076041,1756003839998,-151.0,0.0002838,7]
[381076042,1756003840007,-151.0,0.0002838,7]
[381076043,1756003840017,-151.0,0.0002838,7]
[381076044,1756003840027,-359.349991,0.0002838,7]
[381076045,1756003840036,-359.349991,0.0002838,7]
[381076046,1756003840046,-359.349991,0.0002838,7]
[381076047,1756003840055,-359.349991,0.0002838,7]
[381076048,1756003840065,-2000.0,0.000284,2]
[381076049,1756003840075,-151.0,0.000284,7]
[381076050,1756003840085,-151.0,0.000284,7]
[381076051,1756003840095,-620.59971965,0.00028405,2]
[381076052,1756003840105,-300.0,0.00028426,20]
[381076053,1756003840114,-151.0,0.0002843,7]
[381076054,1756003840124,-221.92094132,0.0002843,7]
[381076055,1756003840134,-255.26728711,0.0002843,7]
[381076056,1756003840143,-199.0,0.00028433,10]
[381076057,1756003840153,-160.0,0.00028433,2]
[381076058,1756003840163,-235.29423062,0.00028483,7]
[381076059,1756003840172,-153.11918228,0.00028483,7]
[381076060,1756003840182,-152.09702263,0.00028483,7]
[381076061,1756003840192,-518.1645484,0.00028483,7]
[381076062,1756003840203,-153.4474233,0.00028483,7]
[381076063,1756003840214,-500.0,0.00028483,7]
[381076064,1756003840224,-500.0,0.00028483,7]
[381076065,1756003840234,-151.0,0.00028483,7]
[381076066,1756003840244,-182.99,0.000285,7]
[381076067,1756003840255,-349.8,0.000285,7]
[381076068,1756003840266,-767.96302283,0.00028533,10]
[381076069,1756003840277,-1013.05490929,0.00028621,5]
[381076070,1756003840286,-561.70074825,0.00028621,5]
[381076071,1756003840298,-514.13460664,0.00028621,5]
[381076072,1756003840308,-552.07182311,0.00028673,2]
[381076073,1756003840317,-153.30462071,0.00028704,7]
[381076074,1756003840327,-501.78607667,0.00028757,7]
[381076075,1756003840336,-500.0,0.00028757,7]
[381076076,1756003840349,-235.60604257,0.00028757,7]
[381076077,1756003840358,-151.0,0.00028757,7]
[381076078,1756003840368,-151.0,0.00028757,7]
[381076079,1756003840378,-151.0,0.00028757,7]
[381076080,1756003840388,-151.0,0.00028757,7]
[381076081,1756003840398,-151.0,0.00028757,7]
[381076082,1756003840412,-151.0,0.00028757,7]
[381076084,1756003840424,-260.0,0.00028981,2]
[381076085,1756003840434,-12223.900928,0.0002899,2]
[381076086,1756003840443,-151.0,0.0002899,7]
[381076088,1756003840453,-126756.9982259,0.00029,15]
[381076089,1756003840463,-151.0,0.00029,7]
[381076091,1756003840473,-6111.95046402,0.0002902,2]
[381076093,1756003840483,-552.07182311,0.00029024,2]
[381076095,1756003840492,-503.40248273,0.00029031,7]
[381076096,1756003840502,-154.618449,0.00029031,7]
[381076098,1756003840512,-812.76,0.00029031,7]
[381076100,1756003840522,-151.0,0.00029031,7]
[381076101,1756003840531,-151.0,0.00029031,7]
[381076102,1756003840541,-291.191538,0.00029031,7]
[381076103,1756003840550,-151.0,0.00029031,7]
[381076104,1756003840560,-151.0,0.00029031,7]
[381076105,1756003840569,-359.349991,0.00029031,7]
[381076107,1756003840581,-359.349991,0.00029031,7]
[381076109,1756003840595,-359.349991,0.00029031,7]
[381076110,1756003840604,-359.349991,0.00029031,7]
[381076111,1756003840614,-1000.0,0.000292,30]
[381076112,1756003840623,-552.07182311,0.00029375,2]
[381076113,1756003840633,-153.039131,0.00029384,7]
[381076114,1756003840643,-151.0,0.00029384,7]
[381076115,1756003840653,-151.0,0.00029384,7]
[381076116,1756003840663,-151.0,0.000294,11]
[381076117,1756003840672,-151.0,0.000294,7]
[381076118,1756003840682,-509.4180437,0.00029473,5]
[381076119,1756003840692,-296.06539008,0.00029473,5]
[381076120,1756003840701,-500.0,0.00029473,5]
[381076121,1756003840711,-626.65299743,0.00029473,2]
[381076122,1756003840720,-500.0,0.00029473,5]
[381076123,1756003840730,-500.0,0.00029473,5]
[381076124,1756003840740,-500.0,0.00029473,5]
[381076125,1756003840749,-500.9763345,0.00029473,5]
[381076126,1756003840759,-500.0,0.00029473,5]
[381076127,1756003840768,-503.76508048,0.00029473,5]
[381076128,1756003840778,-300.623532,0.00029475,7]
[381076129,1756003840787,-1023.1551589,0.00029475,2]
[381076130,1756003840797,-95334.10969969,0.00029475,20]
[381076131,1756003841091,-639.87364309,0.00029475,20]
[381076142,1756003843550,-199.0,0.00026749,20]
[381076143,1756003843560,-151.0,0.00028056,7]
[381076144,1756003843571,-151.0,0.00028056,7]
[381076146,1756003843580,-151.0,0.0002837,7]
[381076148,1756003843590,-151.0,0.0002837,7]
[381076150,1756003843599,-151.0,0.00029,7]